fUST/lending_fUST_20240511
["ID","MTS","AMOUNT","RATE_DAILY","PERIOD"]
[326798006,1715381479705,-1524.6,0.00060273,120]
[326798007,1715381479716,-219.24120104,0.00060273,120]
[326798008,1715381479726,-500.0,0.00060273,120]
[326798009,1715381479735,-2617.66,0.00060273,120]
[326798010,1715381479745,-500.0,0.00060273,120]
[326798011,1715381479754,-1552.09,0.00060273,120]
[326798012,1715381479763,-1408.03,0.00060273,120]
[326798013,1715381479773,-500.0,0.00060273,120]
[326798014,1715381479782,-709.54,0.00060273,120]
[326798015,1715381479792,-2955.83,0.00060273,120]
[326798016,1715381479800,-500.0,0.00060273,120]
[326798017,1715381479809,-671.41,0.00060273,120]
[326798018,1715381479819,-500.0,0.00060273,120]
[326798019,1715381479828,-679.75,0.00060273,120]
[326798020,1715381479837,-507.31369934,0.00060273,120]
[326798021,1715381479847,-525.15,0.00060273,120]
[326798022,1715381479857,-17679.9,0.00060273,120]
[326798023,1715381479866,-500.0,0.00060273,120]
[326798024,1715381479876,-1500.0,0.00060273,120]
[326798025,1715381479885,-500.0,0.00060273,120]
[326798026,1715381479895,-4314.35,0.00060273,120]
[326798027,1715381479904,-500.0,0.00060273,120]
[326798028,1715381479913,-210.74,0.00060273,2]
[326798029,1715381479923,-500.0,0.00060273,120]
[326798030,1715381479932,-500.0,0.00060273,120]
[326798031,1715381479941,-680.13,0.00060273,120]
[326798032,1715381479950,-500.0,0.00060273,120]
[326798033,1715381479960,-500.0,0.00060273,120]
[326798034,1715381479970,-500.0,0.00060273,120]
[326798035,1715381479979,-9229.8,0.00060273,120]
[326798036,1715381479988,-990.56,0.00060273,120]
[326798037,1715381479998,-530.07720507,0.00060273,120]
[326798038,1715381480007,-500.0,0.00060273,120]
[326798039,1715381480017,-246.61632282,0.00060273,120]
[326798040,1715381480026,-1953.0,0.00060273,120]
[326798041,1715381480035,-500.0,0.00060273,120]
[326798042,1715381480045,-1273.71,0.00060273,120]
[326798043,1715381480053,-510.44,0.00060273,2]
[326798044,1715381480063,-1389.39,0.00060273,120]
[326798045,1715381480072,-300.0,0.00060273,7]
[326798046,1715381480082,-3744.03,0.00060273,120]
[326798047,1715381480092,-1011.1,0.00060273,120]
[326798048,1715381480101,-500.0,0.00060273,120]
[326798049,1715381480111,-650.98,0.00060273,120]
[326798050,1715381480120,-500.0,0.00060273,120]
[326798051,1715381480130,-500.0,0.00060273,120]
[326798052,1715381480139,-566.32,0.00060273,120]
[326798053,1715381480148,-5009.77,0.00060273,120]
[326798054,1715381480158,-150.0,0.00060361,2]
[326798055,1715381480172,-197.257994,0.00060505,2]
[326798056,1715381480183,-152.87482911,0.00060522,120]
[326798057,1715381480192,-1798.14077635,0.00060549,120]
[326798058,1715381480201,-621.8,0.00060822,120]
[326798059,1715381480213,-150.1,0.00060822,120]
[326798060,1715381480222,-150.0,0.0006092,2]
[326798061,1715381480232,-151.0,0.00061014,120]
[326798062,1715381480243,-150.97189535,0.00061087,120]
[326798063,1715381480252,-153.0,0.00061096,60]
[326798064,1715381480261,-974.14542008,0.00061237,120]
[326798065,1715381480271,-500.0,0.00061369,120]
[326798066,1715381480280,-500.0,0.00061369,120]
[326798067,1715381480290,-602.21,0.00061369,120]
[326798068,1715381480300,-500.0,0.00061369,120]
[326798069,1715381480309,-500.0,0.00061369,120]
[326798070,1715381480318,-500.0,0.00061369,120]
[326798071,1715381480328,-500.0,0.00061369,120]
[326798072,1715381480338,-500.0,0.00061369,120]
[326798073,1715381480347,-500.0,0.00061369,120]
[326798074,1715381480356,-1165.04,0.00061369,120]
[326798075,1715381480365,-500.0,0.00061369,120]
[326798076,1715381480375,-549.89,0.00061369,120]
[326798077,1715381480384,-500.0,0.00061369,7]
[326798078,1715381480394,-500.0,0.00061369,120]
[326798079,1715381480403,-500.0,0.00061369,120]
[326798080,1715381480412,-500.0,0.00061369,120]
[326798081,1715381480422,-500.0,0.00061369,120]
[326798082,1715381480431,-500.0,0.00061369,120]
[326798083,1715381480441,-500.0,0.00061369,120]
[326798084,1715381480450,-2148.21,0.00061369,120]
[326798085,1715381480459,-609.89,0.00061369,120]
[326798086,1715381480469,-500.0,0.00061369,120]
[326798087,1715381480479,-500.0,0.00061369,120]
[326798088,1715381480489,-500.0,0.00061369,120]
[326798089,1715381480498,-500.0,0.00061369,120]
[326798090,1715381480508,-500.0,0.00061369,120]
[326798091,1715381480518,-175.59740678,0.00061369,120]
[326798092,1715381480527,-500.0,0.00061369,120]
[326798093,1715381480537,-500.0,0.00061369,120]
[326798094,1715381480547,-500.0,0.00061369,120]
[326798095,1715381480556,-500.0,0.00061369,120]
[326798096,1715381480566,-574.68,0.00061369,120]
[326798097,1715381480575,-541.11,0.00061369,120]
[326798098,1715381480584,-500.0,0.00061369,120]
[326798099,1715381480593,-500.0,0.00061369,120]
[326798100,1715381480603,-500.0,0.00061369,120]
[326798101,1715381480612,-500.0,0.00061369,120]
[326798102,1715381480621,-1271.67,0.00061369,7]
[326798103,1715381480630,-500.0,0.00061369,120]
[326798104,1715381480639,-500.0,0.00061369,120]
[326798105,1715381480649,-500.0,0.00061369,120]
[326798106,1715381480658,-1161.06,0.00061369,120]
[326798107,1715381480668,-500.0,0.00061369,120]
[326798108,1715381480677,-500.0,0.00061369,120]
[326798109,1715381480687,-203.00542259,0.00061369,120]
[326798110,1715381480696,-500.0,0.00061369,120]
[326798111,1715381480705,-500.0,0.00061369,120]
[326798112,1715381480716,-500.0,0.00061369,120]
[326798113,1715381480725,-500.0,0.00061369,120]
[326798114,1715381480734,-500.0,0.00061369,120]
[326798115,1715381480743,-664.96,0.00061369,120]
[326798116,1715381480752,-500.0,0.00061369,120]
[326798117,1715381480762,-606.82,0.00061369,120]
[326798118,1715381480771,-500.0,0.00061369,120]
[326798119,1715381480781,-2047.19,0.00061369,120]
[326798120,1715381480790,-500.0,0.00061369,120]
[326798121,1715381480800,-666.88,0.00061369,120]
[326798122,1715381480809,-2115.98,0.00061369,4]
[326798123,1715381480818,-744.8,0.00061369,120]
[326798124,1715381480828,-671.73,0.00061369,120]
[326798125,1715381480838,-2379.45,0.00061369,120]
[326798126,1715381480848,-1253.15,0.00061369,120]
[326798127,1715381480857,-591.68,0.00061369,120]
[326798128,1715381480866,-500.0,0.00061369,120]
[326798129,1715381480875,-500.0,0.00061369,120]
[326798130,1715381480885,-576.78,0.00061369,120]
[326798131,1715381480895,-500.0,0.00061369,120]
[326798132,1715381480904,-500.0,0.00061369,120]
[326798133,1715381480914,-534.42,0.00061369,120]
[326798134,1715381480924,-500.0,0.00061369,120]
[326798135,1715381481052,-500.0,0.00061369,120]
[326798136,1715381481062,-500.0,0.00061369,120]
[326798137,1715381481072,-500.0,0.00061369,120]
[326798138,1715381481082,-1078.44,0.00061369,120]
[326798139,1715381481091,-500.0,0.00061369,120]
[326798140,1715381481101,-500.0,0.00061369,120]
[326798141,1715381481111,-500.0,0.00061369,120]
[326798142,1715381481121,-1489.95,0.00061369,120]
[326798143,1715381481130,-500.0,0.00061369,120]
[326798144,1715381481139,-500.0,0.00061369,120]
[326798145,1715381481149,-500.0,0.00061369,120]
[326798146,1715381481158,-500.0,0.00061369,120]
[326798147,1715381481168,-1505.02,0.00061369,120]
[326798148,1715381481181,-497.16,0.00061369,2]
[326798149,1715381481190,-500.0,0.00061369,120]
[326798150,1715381481200,-821.7,0.00061369,120]
[326798151,1715381481210,-847.21,0.00061369,120]
[326798152,1715381481222,-500.0,0.00061369,120]
[326798153,1715381481231,-500.0,0.00061369,120]
[326798154,1715381481240,-1744.14,0.00061369,2]
[326798155,1715381481251,-1487.03,0.00061369,120]
[326798156,1715381481260,-468.43472465,0.00061369,120]
[326798157,1715381481269,-500.0,0.00061369,120]
[326798158,1715381481278,-500.0,0.00061369,120]
[326798159,1715381481287,-500.0,0.00061369,120]
[326798160,1715381481297,-621.58,0.00061369,120]
[326798161,1715381481306,-622.3853829,0.00061369,120]
[326798162,1715381481315,-500.0,0.00061369,120]
[326798163,1715381481324,-2725.02,0.00061369,120]
[326798164,1715381481334,-1524.58,0.00061369,120]
[326798165,1715381481343,-500.0,0.00061369,120]
[326798166,1715381481352,-550.87,0.00061369,120]
[326798167,1715381481362,-509.58760404,0.00061369,120]
[326798168,1715381481371,-500.0,0.00061369,120]
[326798169,1715381481381,-500.0,0.00061369,120]
[326798170,1715381481390,-670.43,0.00061369,120]
[326798171,1715381481399,-1135.37,0.00061369,120]
[326798172,1715381481408,-515.4,0.00061369,120]
[326798173,1715381481418,-500.0,0.00061369,120]
[326798174,1715381481427,-700.54,0.00061369,120]
[326798175,1715381481436,-565.96,0.00061369,120]
[326798176,1715381481446,-500.0,0.00061369,120]
[326798177,1715381481455,-474.89262482,0.00061369,120]
[326798178,1715381481466,-2668.96,0.00061369,120]
[326798179,1715381481475,-571.02,0.00061369,120]
[326798180,1715381481485,-500.0,0.00061369,120]
[326798181,1715381481494,-820.35,0.00061369,120]
[326798182,1715381481503,-500.0,0.00061369,120]
[326798183,1715381481512,-427.18634723,0.00061369,120]
[326798184,1715381481521,-500.0,0.00061369,120]
[326798185,1715381481530,-500.0,0.00061369,120]
[326798186,1715381481539,-501.21,0.00061369,120]
[326798187,1715381481548,-500.0,0.00061369,120]
[326798188,1715381481557,-500.0,0.00061369,120]
[326798189,1715381481566,-598.13,0.00061369,120]
[326798190,1715381481575,-500.0,0.00061369,120]
[326798191,1715381481584,-967.26,0.00061369,120]
[326798192,1715381481593,-819.54,0.00061369,120]
[326798193,1715381481602,-500.0,0.00061369,120]
[326798194,1715381481611,-500.0,0.00061369,120]
[326798195,1715381481621,-500.0,0.00061369,120]
[326798196,1715381481630,-500.0,0.00061369,120]
[326798197,1715381481640,-500.0,0.00061369,120]
[326798198,1715381481649,-620.58,0.00061369,120]
[326798199,1715381481659,-500.0,0.00061369,120]
[326798200,1715381481667,-500.0,0.00061369,120]
[326798201,1715381481677,-594.58,0.00061369,120]
[326798202,1715381481686,-500.0,0.00061369,120]
[326798203,1715381481695,-1000.0,0.00061369,120]
[326798204,1715381481704,-819.92,0.00061369,120]
[326798205,1715381481713,-500.0,0.00061369,120]
[326798206,1715381481725,-678.91,0.00061369,120]
[326798207,1715381481734,-500.0,0.00061369,120]
[326798208,1715381481744,-500.0,0.00061369,120]
[326798209,1715381481753,-610.7,0.00061369,120]
[326798210,1715381481762,-648.3,0.00061369,120]
[326798211,1715381481771,-500.0,0.00061369,120]
[326798212,1715381481781,-500.0,0.00061369,120]
[326798213,1715381481790,-500.0,0.00061369,120]
[326798214,1715381481799,-873.9,0.00061369,120]
[326798215,1715381481808,-500.0,0.00061369,120]
[326798216,1715381481818,-780.28,0.00061369,120]
[326798217,1715381481827,-2756.4,0.00061369,120]
[326798218,1715381481836,-500.0,0.00061369,120]
[326798219,1715381481845,-594.39709691,0.00061369,120]
[326798220,1715381481854,-500.0,0.00061369,120]
[326798221,1715381481864,-500.0,0.00061369,120]
[326798222,1715381481874,-1210.86,0.00061369,120]
[326798223,1715381481884,-500.0,0.00061369,120]
[326798224,1715381481894,-1070.89,0.00061369,120]
[326798225,1715381481903,-500.0,0.00061369,120]
[326798226,1715381481913,-500.0,0.00061369,120]
[326798227,1715381481922,-500.0,0.00061369,120]
[326798228,1715381481932,-1070.51,0.00061369,120]
[326798229,1715381481942,-500.0,0.00061369,120]
[326798230,1715381481951,-757.61,0.00061369,120]
[326798231,1715381481960,-4210.69,0.00061369,120]
[326798232,1715381481973,-2993.37,0.00061369,120]
[326798233,1715381481982,-551.15,0.00061369,120]
[326798234,1715381481991,-500.0,0.00061369,120]
[326798235,1715381482000,-500.0,0.00061369,120]
[326798236,1715381482009,-500.0,0.00061369,120]
[326798237,1715381482019,-733.98,0.00061369,120]
[326798238,1715381482028,-418.69932825,0.00061369,120]
[326798239,1715381482037,-500.0,0.00061369,120]
[326798240,1715381482046,-4672.91,0.00061369,120]
[326798241,1715381482055,-1818.74,0.00061369,120]
[326798242,1715381482065,-500.0,0.00061369,120]
[326798243,1715381482074,-1000.0,0.00061369,120]
[326798244,1715381482083,-500.0,0.00061369,120]
[326798245,1715381482092,-527.33,0.00061369,120]
[326798246,1715381482102,-500.0,0.00061369,120]
[326798247,1715381482111,-500.0,0.00061369,120]
[326798248,1715381482120,-532.39033435,0.00061369,120]
[326798249,1715381482129,-500.0,0.00061369,120]
[326798250,1715381482138,-500.0,0.00061369,120]
[326798251,1715381482148,-500.0,0.00061369,120]
[326798252,1715381482157,-500.0,0.00061369,120]
[326798253,1715381482169,-500.0,0.00061369,120]
[326798254,1715381482182,-500.0,0.00061369,120]
[326798255,1715381482191,-500.0,0.00061369,120]
[326798256,1715381482201,-401.15675551,0.00061369,120]
[326798257,1715381482211,-1189.78,0.00061369,120]
[326798258,1715381482224,-580.1,0.00061369,120]
[326798259,1715381482233,-837.42,0.00061369,120]
[326798260,1715381482242,-599.74,0.00061369,120]
[326798261,1715381482252,-500.0,0.00061369,120]
[326798262,1715381482261,-1366.53,0.00061369,7]
[326798263,1715381482271,-593.75767478,0.00061369,120]
[326798264,1715381482280,-500.0,0.00061369,120]
[326798265,1715381482289,-500.0,0.00061369,120]
[326798266,1715381482298,-549.67,0.00061369,120]
[326798267,1715381482308,-500.0,0.00061369,120]
[326798268,1715381482317,-638.03,0.00061369,120]
[326798269,1715381482327,-500.0,0.00061369,120]
[326798270,1715381482336,-500.0,0.00061369,120]
[326798271,1715381482346,-9331.73,0.00061369,120]
[326798272,1715381482355,-500.0,0.00061369,120]
[326798273,1715381482363,-500.0,0.00061369,120]
[326798274,1715381482374,-2272.92,0.00061369,120]
[326798275,1715381482383,-623.13,0.00061369,120]
[326798276,1715381482392,-500.0,0.00061369,120]
[326798277,1715381482401,-3952.33,0.00061369,120]
[326798278,1715381482411,-1021.55,0.00061369,120]
[326798279,1715381482420,-728.64,0.00061369,120]
[326798280,1715381482430,-500.0,0.00061369,120]
[326798281,1715381482439,-7667.9,0.00061369,120]
[326798282,1715381482449,-500.0,0.00061369,120]
[326798283,1715381482458,-570.68,0.00061369,120]
[326798284,1715381482469,-3673.96,0.00061369,120]
[326798285,1715381482478,-509.30716191,0.00061369,120]
[326798286,1715381482487,-500.0,0.00061369,120]
[326798287,1715381482496,-500.0,0.00061369,120]
[326798288,1715381482505,-500.0,0.00061369,120]
[326798289,1715381482514,-500.0,0.00061369,120]
[326798290,1715381482523,-2110.2,0.00061369,120]
[326798291,1715381482532,-500.0,0.00061369,120]
[326798292,1715381482541,-472.57911568,0.00061369,120]
[326798293,1715381482550,-366.6712314,0.00061369,120]
[326798294,1715381482559,-500.0,0.00061369,120]
[326798295,1715381482568,-1410.23,0.00061369,120]
[326798296,1715381482577,-1154.88,0.00061369,120]
[326798297,1715381482586,-8703.16,0.00061369,120]
[326798298,1715381482595,-536.24,0.00061369,120]
[326798299,1715381482604,-751.25,0.00061369,120]
[326798300,1715381482614,-500.0,0.00061369,120]
[326798301,1715381482623,-500.0,0.00061369,120]
[326798302,1715381482633,-745.85,0.00061369,120]
[326798303,1715381482642,-500.0,0.00061369,120]
[326798304,1715381482651,-1112.7,0.00061369,120]
[326798305,1715381482661,-500.0,0.00061369,120]
[326798306,1715381482671,-3156.04,0.00061369,120]
[326798307,1715381482680,-500.0,0.00061369,120]
[326798308,1715381482689,-1283.02,0.00061369,120]
[326798309,1715381482699,-1747.91,0.00061369,120]
[326798310,1715381482708,-500.0,0.00061369,120]
[326798311,1715381482719,-500.0,0.00061369,120]
[326798312,1715381482727,-500.0,0.00061369,120]
[326798313,1715381482737,-924.27,0.00061369,120]
[326798314,1715381482745,-500.0,0.00061369,120]
[326798315,1715381482755,-500.0,0.00061369,120]
[326798316,1715381482764,-500.0,0.00061369,120]
[326798317,1715381482773,-585.25,0.00061369,120]
[326798318,1715381482783,-500.0,0.00061369,120]
[326798319,1715381482792,-790.87,0.00061369,120]
[326798320,1715381482802,-500.0,0.00061369,120]
[326798321,1715381482811,-500.0,0.00061369,120]
[326798322,1715381482820,-1269.11,0.00061369,120]
[326798323,1715381482829,-5883.06,0.00061369,120]
[326798325,1715381482940,-1859.96,0.00061369,120]
[326798326,1715381482950,-500.0,0.00061369,120]
[326798327,1715381482959,-500.0,0.00061369,120]
[326798328,1715381482969,-1701.09,0.00061369,120]
[326798329,1715381482979,-632.32,0.00061369,60]
[326798330,1715381482988,-1691.53,0.00061369,120]
[326798331,1715381482997,-3991.97,0.00061369,120]
[326798332,1715381483006,-592.96,0.00061369,120]
[326798333,1715381483015,-500.0,0.00061369,120]
[326798334,1715381483025,-783.68,0.00061369,120]
[326798335,1715381483034,-4891.99,0.00061369,21]
[326798336,1715381483044,-2531.38,0.00061369,120]
[326798337,1715381483053,-500.0,0.00061369,120]
[326798338,1715381483062,-500.0,0.00061369,120]
[326798339,1715381483071,-2025.54,0.00061369,120]
[326798340,1715381483080,-906.96,0.00061369,120]
[326798341,1715381483089,-47405.75,0.00061369,120]
[326798342,1715381483098,-2056.13,0.00061369,120]
[326798343,1715381483107,-500.0,0.00061369,120]
[326798344,1715381483117,-643.51,0.00061369,120]
[326798345,1715381483125,-852.8,0.00061369,120]
[326798346,1715381483134,-8527.55,0.00061369,120]
[326798347,1715381483143,-500.0,0.00061369,120]
[326798348,1715381483152,-972.54,0.00061369,120]
[326798349,1715381483162,-500.0,0.00061369,120]
[326798350,1715381483175,-1320.33,0.00061369,2]
[326798351,1715381483184,-3524.89,0.00061369,2]
[326798352,1715381483193,-546.11,0.00061369,120]
[326798353,1715381483202,-500.0,0.00061369,120]
[326798354,1715381483212,-500.0,0.00061369,120]
[326798355,1715381483223,-560.85,0.00061369,120]
[326798356,1715381483232,-500.0,0.00061369,120]
[326798357,1715381483242,-715.77,0.00061369,120]
[326798358,1715381483253,-728.84,0.00061369,120]
[326798359,1715381483263,-1524.6,0.00061369,120]
[326798360,1715381483272,-500.0,0.00061369,120]
[326798361,1715381483281,-2617.66,0.00061369,120]
[326798362,1715381483290,-256.1439048,0.00061369,120]
[326798363,1715381483299,-1552.09,0.00061369,120]
[326798364,1715381483308,-1408.03,0.00061369,120]
[326798365,1715381483317,-500.0,0.00061369,120]
[326798366,1715381483326,-709.54,0.00061369,120]
[326798367,1715381483335,-2955.83,0.00061369,120]
[326798368,1715381483344,-500.0,0.00061369,120]
[326798369,1715381483353,-671.41,0.00061369,120]
[326798370,1715381483362,-500.0,0.00061369,120]
[326798371,1715381483371,-679.75,0.00061369,120]
[326798372,1715381483380,-525.15,0.00061369,120]
[326798373,1715381483389,-17679.9,0.00061369,120]
[326798374,1715381483398,-500.0,0.00061369,120]
[326798375,1715381483408,-1500.0,0.00061369,120]
[326798376,1715381483417,-500.0,0.00061369,120]
[326798377,1715381483426,-4314.35,0.00061369,120]
[326798378,1715381483435,-500.0,0.00061369,120]
[326798379,1715381483444,-500.0,0.00061369,120]
[326798380,1715381483453,-500.0,0.00061369,120]
[326798381,1715381483462,-680.13,0.00061369,120]
[326798382,1715381483474,-564.84715564,0.00061369,120]
[326798383,1715381483483,-500.0,0.00061369,120]
[326798384,1715381483492,-500.0,0.00061369,120]
[326798385,1715381483500,-9229.8,0.00061369,120]
[326798386,1715381483509,-990.56,0.00061369,120]
[326798387,1715381483519,-500.0,0.00061369,120]
[326798388,1715381483528,-1953.0,0.00061369,120]
[326798389,1715381483537,-500.0,0.00061369,120]
[326798390,1715381483546,-1273.71,0.00061369,120]
[326798391,1715381483555,-510.44,0.00061369,2]
[326798392,1715381483565,-1389.39,0.00061369,120]
[326798393,1715381483575,-300.0,0.00061369,7]
[326798394,1715381483584,-3744.03,0.00061369,120]
[326798395,1715381483593,-1011.1,0.00061369,120]
[326798396,1715381483603,-500.0,0.00061369,120]
[326798397,1715381483612,-650.98,0.00061369,120]
[326798398,1715381483622,-500.0,0.00061369,120]
[326798399,1715381483632,-500.0,0.00061369,120]
[326798400,1715381483642,-566.32,0.00061369,120]
[326798401,1715381483651,-5009.77,0.00061369,120]
[326798402,1715381483661,-974.14542008,0.00061431,120]
[326798403,1715381483670,-150.0,0.00061479,2]
[326798404,1715381483679,-346.06933689,0.000616,120]
[326798405,1715381483688,-557.0,0.00061619,120]
[326798406,1715381483698,-557.0,0.00061619,120]
[326798407,1715381483707,-557.0,0.00061619,120]
[326798408,1715381483716,-557.0,0.00061619,120]
[326798409,1715381483725,-167.0,0.00061619,120]
[326798410,1715381483734,-974.14542008,0.0006175,120]
[326798411,1715381483744,-150.97189535,0.0006184,120]
[326798412,1715381483754,-169.25395516,0.00061881,120]
[326798413,1715381483763,-150.97189535,0.00061896,120]
[326798414,1715381483773,-1798.14077635,0.00061927,120]
[326798415,1715381483783,-3000.0,0.00062,120]
[326798416,1715381483793,-3000.0,0.00062,120]
[326798417,1715381483802,-3000.0,0.00062,120]
[326798418,1715381483812,-3000.0,0.00062,120]
[326798419,1715381483821,-3000.0,0.00062,120]
[326798420,1715381483830,-3000.0,0.00062,120]
[326798421,1715381483840,-3000.0,0.00062,120]
[326798422,1715381483850,-3000.0,0.00062,120]
[326798423,1715381483859,-150.0,0.00062038,2]
[326798424,1715381483869,-153.0,0.00062219,2]
[326798425,1715381483878,-1798.14077635,0.00062274,120]
[326798426,1715381483888,-191.0287578,0.00062405,120]
[326798427,1715381483897,-500.0,0.00062465,120]
[326798428,1715381483907,-500.0,0.00062465,120]
[326798429,1715381483916,-602.21,0.00062465,120]
[326798430,1715381483926,-500.0,0.00062465,120]
[326798431,1715381483935,-500.0,0.00062465,120]
[326798432,1715381483944,-500.0,0.00062465,120]
[326798433,1715381483954,-500.0,0.00062465,120]
[326798434,1715381483963,-500.0,0.00062465,120]
[326798435,1715381483973,-500.0,0.00062465,120]
[326798436,1715381483982,-1165.04,0.00062465,120]
[326798437,1715381483991,-500.0,0.00062465,120]
[326798438,1715381484001,-549.89,0.00062465,120]
[326798439,1715381484011,-500.0,0.00062465,7]
[326798440,1715381484021,-500.0,0.00062465,120]
[326798441,1715381484030,-500.0,0.00062465,120]
[326798442,1715381484040,-500.0,0.00062465,120]
[326798443,1715381484049,-500.0,0.00062465,120]
[326798444,1715381484059,-500.0,0.00062465,120]
[326798445,1715381484069,-500.0,0.00062465,120]
[326798446,1715381484079,-2148.21,0.00062465,120]
[326798447,1715381484088,-609.89,0.00062465,120]
[326798448,1715381484098,-500.0,0.00062465,120]
[326798449,1715381484107,-500.0,0.00062465,120]
[326798450,1715381484117,-500.0,0.00062465,120]
[326798451,1715381484126,-500.0,0.00062465,120]
[326798452,1715381484136,-363.49534539,0.00062465,120]
[326798453,1715381484145,-500.0,0.00062465,120]
[326798454,1715381484155,-500.0,0.00062465,120]
[326798455,1715381484165,-500.0,0.00062465,120]
[326798456,1715381484178,-500.0,0.00062465,120]
[326798457,1715381484188,-574.68,0.00062465,120]
[326798458,1715381484197,-541.11,0.00062465,120]
[326798459,1715381484207,-500.0,0.00062465,120]
[326798460,1715381484216,-500.0,0.00062465,120]
[326798461,1715381484226,-500.0,0.00062465,120]
[326798462,1715381484235,-500.0,0.00062465,120]
[326798463,1715381484245,-1271.67,0.00062465,7]
[326798464,1715381484257,-500.0,0.00062465,120]
[326798465,1715381484266,-500.0,0.00062465,120]
[326798466,1715381484276,-1161.06,0.00062465,120]
[326798467,1715381484285,-500.0,0.00062465,120]
[326798468,1715381484294,-341.77595179,0.00062465,120]
[326798469,1715381484303,-500.0,0.00062465,120]
[326798470,1715381484313,-504.57445433,0.00062465,120]
[326798471,1715381484323,-620.75845488,0.00062465,120]
[326798472,1715381484332,-348.60774032,0.00062465,120]
[326798473,1715381484342,-500.0,0.00062465,120]
[326798474,1715381484351,-664.96,0.00062465,120]
[326798475,1715381484361,-500.0,0.00062465,120]
[326798476,1715381484370,-606.82,0.00062465,120]
[326798477,1715381484380,-500.0,0.00062465,120]
[326798478,1715381484391,-2047.19,0.00062465,120]
[326798479,1715381484400,-500.0,0.00062465,120]
[326798480,1715381484410,-666.88,0.00062465,120]
[326798481,1715381484424,-2115.98,0.00062465,4]
[326798482,1715381484433,-744.8,0.00062465,120]
[326798483,1715381484443,-671.73,0.00062465,120]
[326798484,1715381484452,-2379.45,0.00062465,120]
[326798485,1715381484462,-1253.15,0.00062465,120]
[326798486,1715381484473,-591.68,0.00062465,120]
[326798487,1715381484482,-500.0,0.00062465,120]
[326798488,1715381484491,-485.37960732,0.00062465,120]
[326798489,1715381484500,-576.78,0.00062465,120]
[326798490,1715381484510,-500.0,0.00062465,120]
[326798491,1715381484520,-500.0,0.00062465,120]
[326798492,1715381484529,-534.42,0.00062465,120]
[326798493,1715381484538,-500.0,0.00062465,120]
[326798494,1715381484548,-500.0,0.00062465,120]
[326798495,1715381484557,-500.0,0.00062465,120]
[326798496,1715381484569,-500.0,0.00062465,120]
[326798497,1715381484578,-1078.44,0.00062465,120]
[326798498,1715381484684,-500.0,0.00062465,120]
[326798499,1715381484693,-500.0,0.00062465,120]
[326798500,1715381484703,-500.0,0.00062465,120]
[326798501,1715381484713,-1489.95,0.00062465,120]
[326798502,1715381484725,-500.0,0.00062465,120]
[326798503,1715381484735,-500.0,0.00062465,120]
[326798504,1715381484744,-500.0,0.00062465,120]
[326798505,1715381484754,-1505.02,0.00062465,120]
[326798506,1715381484763,-500.0,0.00062465,120]